Workbook

Sheet hd_220
O1: =JV_ukazvzorec(E1) -> 
C2: LEGENDA
C3: vstupní hodnoty
C4: vstupní hodnoty | výstup odjinud -> vstup
C5: výsledek
C6: výsledek dílčí
C7: výsledek rozhodující, posouzení
B9: VSTUPNÍ PARAMETRY
C10: MATERIÁLY
C11: OCEL B500B
C12: Ecm | D12: = | E12: 32 | F12: GPa | O12: =JV_ukazvzorec(E12) -> 32
C13: fyk | D13: = | E13: 500 | F13: MPa | O13: =JV_ukazvzorec(E13) -> 500
C14: fyd | D14: = | E14: =fyk/1.15 -> 434.7826087 | F14: MPa | O14: =fyk/1.15
C15: BETON C30/37
C16: cement: | E16: třída N | O16: třída N
C17: Es | E17: 200 | F17: GPa | O17: 200
C18: fck | D18: = | E18: 30 | F18: MPa | O18: 30
C19: fcd | D19: = | E19: =fck/1.5 -> 20 | F19: Mpa | O19: =fck/1.5
C20: fctm | D20: = | E20: 2.9 | F20: Mpa | O20: 2.9
C22: GEOMETRIE
C24: hslab | D24: = | E24: 220 | F24: mm | O24: 220
C25: bslab | D25: = | E25: 1000 | F25: mm | O25: 1000
C26: cd,top | D26: = | E26: 25 | F26: mm | O26: 25
C27: cd,bot | D27: = | E27: 30 | F27: mm | O27: 30
C28: bslab | D28: = | E28: 1000 | F28: mm | O28: 1000
C30: Lx | D30: = | E30: 7800 | F30: mm
C31: Ly | D31: = | E31: 11700 | F31: mm
C33: VYZTUŽENÍ
C35: směr X
C36: Ø2,x | D36: = | E36: 8 | F36: mm | G36: / | H36: 150 | I36: mm | O36: 8
C37: Ø1,x | D37: = | E37: 12 | F37: mm | G37: / | H37: 180 | I37: mm | O37: 12
C38: d2,x | D38: = | E38: =cd_top+prumer_2_x/2 -> 29 | F38: mm | O38: =cd_top+prumer_2_x/2
C39: d,x | D39: = | E39: =h_slab-cd_bot-prumer_1_x/2 -> 184 | F39: mm | O39: =h_slab-cd_bot-prumer_1_x/2
C40: d1,x | D40: = | E40: =cd_bot+prumer_1_x/2 -> 36 | F40: mm | O40: =cd_bot+prumer_1_x/2
C41: As,2,x | D41: = | E41: =1000/H36*PI()*prumer_2_x*prumer_2_x/4 -> 335.1032164 | F41: mm2 | O41: =1000/H36*PI()*prumer_2_x*prumer_2_x/4
C42: As,1,x | D42: = | E42: =1000/H37*PI()*prumer_1_x*prumer_1_x/4 -> 628.3185307 | F42: mm2 | O42: =1000/H37*PI()*prumer_1_x*prumer_1_x/4
C43: směr Y
C44: Ø2,y | D44: = | E44: 8 | F44: mm | G44: / | H44: 150 | I44: mm | O44: 8
C45: Ø1,y | D45: = | E45: 10 | F45: mm | G45: / | H45: 180 | I45: mm | O45: 10
C46: d2,y | D46: = | E46: =cd_top+prumer_2_x+prumer_2_y/2 -> 37 | F46: mm | O46: =cd_top+prumer_2_x+prumer_2_y/2
C47: d,y | D47: = | E47: =h_slab-cd_bot-prumer_1_x-prumer_1_y/2 -> 173 | F47: mm | O47: =h_slab-cd_bot-prumer_1_x-prumer_1_y/2
C48: d1,y | D48: = | E48: =cd_bot+prumer_1_x+prumer_1_y/2 -> 47 | F48: mm | O48: =cd_bot+prumer_1_x+prumer_1_y/2
C49: As,2,y | D49: = | E49: =1000/H44*PI()*prumer_2_y*prumer_2_y/4 -> 335.1032164 | F49: mm2 | O49: =1000/H44*PI()*prumer_2_y*prumer_2_y/4
C50: As,1,y | D50: = | E50: =1000/H45*PI()*prumer_1_y*prumer_1_y/4 -> 436.332313 | F50: mm2 | O50: =1000/H45*PI()*prumer_1_y*prumer_1_y/4
B52: KRÁTKODOBÉ ZATÍŽENÍ
C53: PRŮŘEZ BEZ TRHLIN - CHARAKTERISTIKY
C54: alpha_e | D54: = | E54: =Es/Ecm -> 6.25 | O54: =Es/Ecm
G55: =JV_ukazvzorec(E54) -> =Es/Ecm
C56: plocha ideálního průřezu
C57: AI,x | D57: = | E57: =h_slab*b_slab+alpha_e*(As_1_x+As_2_x) -> 226021.3859 | F57: mm2 | O57: =h_slab*b_slab+alpha_e*(As_1_x+As_2_x)
G58: =JV_ukazvzorec(E57) -> =h_slab*b_slab+alpha_e*(As_1_x+As_2_x)
C59: AI,y | D59: = | E59: =h_slab*b_slab+alpha_e*(As_1_y+As_2_y) -> 224821.4721 | F59: mm2 | O59: =h_slab*b_slab+alpha_e*(As_1_y+As_2_y)
C60: vzdálenost těžiště ideálního průřezu od horního okraje
C61: aI,x | D61: = | E61: =(h_slab*b_slab*h_slab/2+alpha_e*(As_1_x*d_x+As_2_x*d_2_x))/plocha_i_x -> 110.5351322 | F61: mm | O61: =(h_slab*b_slab*h_slab/2+alpha_e*(As_1_x*d_x+As_2_x*d_2_x))/plocha_i_x
C62: aI,y | D62: = | E62: =(h_slab*b_slab*h_slab/2+alpha_e*(As_1_y*d_y+As_2_y*d_2_y))/plocha_i_y -> 110.0841334 | F62: mm | O62: =(h_slab*b_slab*h_slab/2+alpha_e*(As_1_y*d_y+As_2_y*d_2_y))/plocha_i_y
C63: moment setrvačnosti ideálního průřezu
C64: II,x | D64: = | E64: =1/12*b_slab*h_slab^3+b_slab*h_slab*(vzdalenost_i_x-h_slab/2)^2+alpha_e*(As_1_x*(d_x-vzdalenost_i_x)^2+As_2_x*(vzdalenost_i_x-d_2_x)^2) -> 922514136.4 | F64: mm4 | O64: =1/12*b_slab*h_slab^3+b_slab*h_slab*(vzdalenost_i_x-h_slab/2)^2+alpha_e*(As_1_x*(d_x-vzdalenost_i_x)^2+As_2_x*(vzdalenost_i_x-d_2_x)^2)
C65: II,y | D65: = | E65: =1/12*b_slab*h_slab^3+b_slab*h_slab*(vzdalenost_i_y-h_slab/2)^2+alpha_e*(As_1_y*(d_y-vzdalenost_i_y)^2+As_2_y*(vzdalenost_i_y-d_2_y)^2) -> 909316541.9 | F65: mm4 | O65: =1/12*b_slab*h_slab^3+b_slab*h_slab*(vzdalenost_i_y-h_slab/2)^2+alpha_e*(As_1_y*(d_y-vzdalenost_i_y)^2+As_2_y*(vzdalenost_i_y-d_2_y)^2)
B67: DLOUHODOBÉ ZATÍŽENÍ
C69: ts | D69: = | E69: 7 | F69: d | H69: - doba ošetřování | O69: 7
C70: t0 | D70: = | E70: 28 | F70: d | H70: - začátek púsobení zatížení | O70: 28
C71: tinf | D71: = | E71: 18250 | F71: d | H71: - posouzení na konci životnosti (50let = 50*365=18250 dnů) | O71: 18250
C72: RH | D72: = | E72: 50 | F72: % | H72: - vlhokost okolního prostředí (horší z hodnot => interiér na horním povrchu) | O72: 50
C74: h0 | D74: = | E74: 220 | F74: mm | H74: - náhradní obvod | O74: 220
C76: fi | D76: = | E76: 2.35 | H76: - součinitel dotvarování (odečtěno z grafu) | O76: 2.35
C78: PRŮŘEZ BEZ TRHLIN - CHARAKTERISTIKY
C79: efektivní modul pružnosti
C80: Ec,ef | D80: = | E80: =Ecm/(1+fi) -> 9.552238806 | F80: GPa | O80: =Ecm/(1+fi)
C81: alphae,ef | D81: = | E81: =Es/Ec_ef -> 20.9375 | O81: =Es/Ec_ef
C82: plocha ideálního průřezu
C83: AI,ef,x | D83: = | E83: =h_slab*b_slab+alpha_e_ef*(As_1_x+As_2_x) -> 240171.6428 | F83: mm2 | O83: =JV_ukazvzorec(E83) -> =h_slab*b_slab+alpha_e_ef*(As_1_x+As_2_x)
C84: AI,ef,y | D84: = | E84: =h_slab*b_slab+alpha_e_ef*(As_1_y+As_2_y) -> 236151.9314 | F84: mm2 | O84: =h_slab*b_slab+alpha_e_ef*(As_1_y+As_2_y)
C85: vzdálenost těžiště ideálního průřezu od horního okraje
C86: aI,ef,x | D86: = | E86: =(h_slab*b_slab*h_slab/2+alpha_e_ef*(As_1_x*d_x+As_2_x*d_2_x))/plocha_i_ef_x -> 111.6870722 | F86: mm | O86: =(h_slab*b_slab*h_slab/2+alpha_e_ef*(As_1_x*d_x+As_2_x*d_2_x))/plocha_i_ef_x
C87: aI,ef,y | D87: = | E87: =(h_slab*b_slab*h_slab/2+alpha_e_ef*(As_1_x*d_y+As_2_y*d_2_y))/plocha_i_ef_y -> 113.2130813 | F87: mm | O87: =(h_slab*b_slab*h_slab/2+alpha_e_ef*(As_1_x*d_y+As_2_y*d_2_y))/plocha_i_ef_y
C88: moment setrvačnosti ideálního průřezu
C89: II,ef,x | D89: = | E89: =1/12*b_slab*h_slab^3+b_slab*h_slab*(vzdalenost_i_ef_x-h_slab/2)^2+alpha_e_ef*(As_1_x*(d_x-vzdalenost_i_ef_x)^2+As_2_x*(vzdalenost_i_ef_x-d_2_x)^2) -> 1004722272 | F89: mm4 | O89: =1/12*b_slab*h_slab^3+b_slab*h_slab*(vzdalenost_i_ef_x-h_slab/2)^2+alpha_e_ef*(As_1_x*(d_x-vzdalenost_i_ef_x)^2+As_2_x*(vzdalenost_i_ef_x-d_2_x)^2)
C90: II,ef,y | D90: = | E90: =1/12*b_slab*h_slab^3+b_slab*h_slab*(vzdalenost_i_ef_y-h_slab/2)^2+alpha_e_ef*(As_1_y*(d_y-vzdalenost_i_ef_y)^2+As_2_y*(vzdalenost_i_ef_y-d_2_y)^2) -> 963013224.5 | F90: mm4 | O90: =1/12*b_slab*h_slab^3+b_slab*h_slab*(vzdalenost_i_ef_y-h_slab/2)^2+alpha_e_ef*(As_1_y*(d_y-vzdalenost_i_ef_y)^2+As_2_y*(vzdalenost_i_ef_y-d_2_y)^2)
C91: => ohybový moment při vzniku trhlin
C93: mcr,x | D93: = | E93: =fctm*I_i_ef_x/(h_slab-vzdalenost_i_ef_x)/1000/1000 -> 26.90070937 | F93: kNm/m' | O93: =fctm*I_i_ef_x/(h_slab-vzdalenost_i_ef_x)/1000/1000
C94: mcr,y | E94: =fctm*I_i_ef_y/(h_slab-vzdalenost_i_ef_y)/1000/1000 -> 26.15243875 | F94: kNm/m' | H94: (moment ve směru y není v tomto případě rozhodující) | O94: =fctm*I_i_ef_y/(h_slab-vzdalenost_i_ef_y)/1000/1000
C96: POSOUZENÍ VZNIKU TRHLIN
C98: kvazistálá kombinace
C99: mE,qp | D99: = | E99: 24.11 | F99: kNm/m' | H99: =IF(E99<M_cr,"<",">") -> < | I99: =M_cr -> 26.90070937 | J99: = mcr | K99: =IF(E99<I99,"=> trhliny NEVZNIKNOU","trhliny VZIKNOU") -> => trhliny NEVZNIKNOU | L99: (příčky jako stálé) | O99: 24.11
C100: mE,qp | D100: = | E100: 21.82 | F100: kNm/m' | H100: =IF(E100<M_cr,"<",">") -> < | I100: =M_cr -> 26.90070937 | J100: = mcr | K100: =IF(E100<I100,"=> trhliny NEVZNIKNOU","trhliny VZIKNOU") -> => trhliny NEVZNIKNOU | L100: (příčky jako proměnné) | O100: 21.82
C102: častá kombinace
C103: mE,fr | D103: = | E103: 23.29 | F103: kNm/m' | H103: =IF(E103<M_cr,"<",">") -> < | I103: =M_cr -> 26.90070937 | J103: = mcr | K103: =IF(E103<I103,"=> trhliny NEVZNIKNOU","trhliny VZIKNOU") -> => trhliny NEVZNIKNOU | L103: (příčky jako proměnné) | O103: 23.29
C105: charakteristická kombinace
C106: mE,k | D106: = | E106: 27.17 | F106: kNm/m' | H106: =IF(E106<M_cr,"<",">") -> > | I106: =M_cr -> 26.90070937 | J106: = mcr | K106: =IF(E106<I106,"=> trhliny NEVZNIKNOU","=> trhliny VZNIKAJÍ") -> => trhliny VZNIKAJÍ | L106: (příčky jako proměnné) | O106: 27.17
C108: PRŮŘEZ S TRHLINAMI - CHARAKTERISTIKY
C109: vzdálenost neutrální osy od tlačeného okraje
C110: xcr,ef,x | D110: = | E110: =alpha_e_ef/b_slab*(As_1_x+As_2_x)*(-1+SQRT(1+(2*b_slab/alpha_e_ef)*((As_1_x*d_x+As_2_x*d_2_x)/(As_1_x+As_2_x)^2))) -> 55.02829349 | F110: mm | O110: =alpha_e_ef/b_slab*(As_1_x+As_2_x)*(-1+SQRT(1+(2*b_slab/alpha_e_ef)*((As_1_x*d_x+As_2_x*d_2_x)/(As_1_x+As_2_x)^2)))
C111: xcr,ef,y | D111: = | E111: =alpha_e_ef/b_slab*(As_1_y+As_2_y)*(-1+SQRT(1+(2*b_slab/alpha_e_ef)*((As_1_y*d_y+As_2_y*d_2_y)/(As_1_y+As_2_y)^2))) -> 46.62577431 | F111: mm | O111: =alpha_e_ef/b_slab*(As_1_y+As_2_y)*(-1+SQRT(1+(2*b_slab/alpha_e_ef)*((As_1_y*d_y+As_2_y*d_2_y)/(As_1_y+As_2_y)^2)))
C112: moment setvračnosti potrhaného průřezu
C113: III,ef,x | D113: = | E113: =1/3*b_slab*x_cr_ef_x^3+alpha_e_ef*(As_1_x*(d_x-x_cr_ef_x)^2+As_2_x*(x_cr_ef_x-d_2_x)^2) -> 279120571.8 | F113: mm4 | O113: =JV_ukazvzorec(E113) -> =1/3*b_slab*x_cr_ef_x^3+alpha_e_ef*(As_1_x*(d_x-x_cr_ef_x)^2+As_2_x*(x_cr_ef_x-d_2_x)^2)
C114: III,ef,y | D114: = | E114: =1/3*b_slab*x_cr_ef_y^3+alpha_e_ef*(As_1_y*(d_y-x_cr_ef_y)^2+As_2_y*(x_cr_ef_y-d_2_y)^2) -> 180338976.9 | F114: mm4 | O114: =JV_ukazvzorec(E114) -> =1/3*b_slab*x_cr_ef_y^3+alpha_e_ef*(As_1_y*(d_y-x_cr_ef_y)^2+As_2_y*(x_cr_ef_y-d_2_y)^2)
C115: rozdělovací součinitel
C116: Trhliny se v průžezu pro posuzovanou (kvazistálou) kombinaci zatížení neobjeví.
C117: Během živostnosti vzniknou (charakteristická kombinace).
C118: => mE,qp = mcr
C119: // pro stanovení váženého momentu setrvačnosti je moment při kvazistálé hodnotě zatížení
C120: // uvažován jako moment při vzniku trhin
C121: beta | D121: = | E121: 0.5 | G121: - dlouhodobě působící, mnohonásobně se opakující zatížení | O121: 0.5
C122: zeta | D122: = | E122: =1-beta*(M_cr/M_cr)^2 -> 0.5 | O122: =1-beta*(M_cr/M_cr)^2
C124: vážený moment setrvačnosti
C125: Ilt,x | D125: = | E125: =I_i_ef_x*I_ii_ef_x/(zeta*I_i_ef_x+(1-zeta)*I_ii_ef_x) -> 436873806.6 | F125: mm4 | O125: =I_i_ef_x*I_ii_ef_x/(zeta*I_i_ef_x+(1-zeta)*I_ii_ef_x)
C126: Ilt,y | D126: = | E126: =I_i_ef_y*I_ii_ef_y/(zeta*I_i_ef_y+(1-zeta)*I_ii_ef_y) -> 303788840.3 | F126: mm4 | O126: =I_i_ef_y*I_ii_ef_y/(zeta*I_i_ef_y+(1-zeta)*I_ii_ef_y)
C128: PRŮHYB PŘI KVAZISTÁLÉ KOMBINACI ZATÍŽENÍ
C129: elastický průhyb (lineární)
C130: fel | D130: = | E130: 4.6 | F130: mm | H130: SCIA Engineer | O130: 4.6
C132: průhyb při dlouhodobém zatížení (efektivní hodnoty - dotvarování, trhliny) | působení v jednom směru
C134: flt,qp,x | D134: = | E134: =f_el*Ecm*1/12*b_slab*h_slab^3/(Ec_ef*I_lt_x) -> 31.29921378 | F134: mm | O134: =f_el*Ecm*1/12*b_slab*h_slab^3/(Ec_ef*I_lt_x)
C135: flt,qp,y | D135: = | E135: =f_el*Ecm*1/12*b_slab*h_slab^3/(Ec_ef*I_i_ef_y) -> 14.1989812 | F135: mm
C136: fel,max,x | E136: =f_lim/(f_lt_qp_x/f_el) -> 4.585418695 | F136: mm | H136: (maximální elastický průhyb, tak aby vyhověla podmínka Lx/250)
C137: fel,max,y | E137: =f_lim/(E135/f_el) -> 10.10776745 | F137: mm | H137: (maximální elastický průhyb, tak aby vyhověla podmínka L/250)
C139: PRŮHYB PŘI KVAZISTÁLÉ KOMBINACI ZATÍŽENÍ
C140: průhyb při dlouhodobém zatížení (efektivní hodnoty - dotvarování, trhliny) | působení ve dvou směrech
C142: Ir,x | D142: = | E142: =0.75*I_lt_x -> 327655354.9 | F142: mm4 | J142: ve směru "x" s trhlinami | O142: =0.75*I_lt_x
C143: Ir,y | D143: = | E143: =0.75*I_i_ef_y -> 722259918.4 | F143: mm4 | J143: ve směru "y" bez trhlin | O143: =0.75*I_i_ef_y
C146: Ie | D146: = | E146: =(1+n_x*lambda^4/n_y)/(I_r_x+n_x*lambda^4*I_r_y/n_y)*I_r_x*I_r_y -> 602560109 | O146: =(1+n_x*lambda^4/n_y)/(I_r_x+n_x*lambda^4*I_r_y/n_y)*I_r_x*I_r_y
C150: flt,qp,xy | D150: = | E150: =f_el*Ecm*1/12*b_slab*h_slab^3/(Ec_ef*I_e) -> 22.69285082 | F150: mm | O150: =f_el*Ecm*1/12*b_slab*h_slab^3/(Ec_ef*I_e)
C151: fel,max | D151: = | E151: =f_lim/(E150/f_el) -> 6.324458796 | F151: mm
L153: nx = | M153: 2
L154: ny = | M154: 2
L155: lambda = | M155: =L_x/L_y -> 0.6666666667 | O155: =JV_ukazvzorec(M155) -> =L_x/L_y
B162: POSOUZENÍ PRŮHYBU
C164: LIMITNÍ PRŮHYB
C166: Lmin | E166: =MIN(L_x,L_y) -> 7800 | F166: mm
C167: 1/x | D167: = | E167: 250 | F167: omezení průhybu
C168: flim | D168: = | E168: =L_min/E167 -> 31.2 | F168: mm
C170: CELKOVÝ PRŮHYB | PŮSOBENÍ V JEDNOM SMĚRU (X)
E171: =f_lt_qp_x -> 31.29921378 | F171: mm | G171: kvazistálé zatížení (dotvarování)
E172: 0 | F172: mm | G172: smršťování
C173: ftot | D173: = | E173: =SUM(E171:E172) -> 31.29921378 | F173: mm | G173: celkový průhyb
C175: ftot | D175: = | E175: =E173 -> 31.29921378 | F175: mm | H175: =IF(E175<I175,"<",">") -> > | I175: =f_lim -> 31.2 | J175: mm | K175: = flim | L175: =IF(E175<I175,"=> VYHOVUJE","=> NEVYHOVUJE") -> => NEVYHOVUJE
O176: =f_lt_qp_y*E176/f_el+E176 -> 0
C177: fel,max,x | E177: =(f_lim-E172)/(f_lt_qp_x/f_el) -> 4.585418695 | F177: mm | H177: => | I177: =O177+E172 -> 31.2 | J177: mm | K177: - maximální elastický průhyb aby byl limit splněn | O177: =f_lt_qp_x*E177/f_el -> 31.2
O178: =JV_ukazvzorec(E178) -> 
C179: CELKOVÝ PRŮHYB | PŮSOBENÍ VE DVOU SMĚRECH (X,Y)
E180: =f_lt_qp_xy -> 22.69285082 | F180: mm | G180: kvazistálé zatížení (dotvarování) | O180: =f_lt_qp_xy
E181: 0 | F181: mm | G181: smršťování | O181: 0
C182: ftot | D182: = | E182: =SUM(E180:E181) -> 22.69285082 | F182: mm | G182: celkový průhyb
C184: ftot | D184: = | E184: =E182 -> 22.69285082 | F184: mm | H184: =IF(E184<I184,"<",">") -> < | I184: =f_lim -> 31.2 | J184: mm | K184: = flim | L184: =IF(E184<I184,"=> VYHOVUJE","=> NEVYHOVUJE") -> => VYHOVUJE | O184: =E184/E173 -> 0.7250294203
C186: fel,max,xy | E186: =(f_lim-E181)/(f_lt_qp_xy/f_el) -> 6.324458796 | F186: mm | G186: => | I186: =O186+E181 -> 31.2 | J186: mm | K186: - maximální elastický průhyb aby byl limit splněn | O186: =f_lt_qp_xy*E186/f_el -> 31.2
B198: PRŮHYB OD SMRŠTĚNÍ
C199: Smrštění začíná působit v čase t0 (konec ošetřování). Vlhkost okolního prostředí <=> dotvarování.
C200: fic,sh | D200: = | E200: 2.85 | G200: - součinitel dotvarování (odečtěno z grafu) | O200: 2.85
C202: poměrné smršťování vysycháním
C203: betaRH | D203: = | E203: =1.55*(1-(E205/RH_0)^3) -> 1.35625 | O203: =1.55*(1-(E205/RH_0)^3)
C205: RH | D205: = | E205: 50 | F205: % | H205: - relativní vlhkost okolního prostředí (zadáno na vstupu) | O205: 50
C206: RH0 | D206: = | E206: 100 | F206: % | O206: 100
C208: epsiloncd,0 | D208: = | E208: =0.85*((220+110*alpha_ds1)*EXP(-alpha_ds2*f_cm/f_cm_0))*10^-6*beta_RH -> 0.0004822412193 | O208: =0.85*((220+110*alpha_ds1)*EXP(-alpha_ds2*f_cm/f_cm_0))*10^-6*beta_RH
C210: fcm0 | D210: = | E210: 10 | F210: MPa | H210: - ČSN EN 1992-1-1 | O210: 10
C211: fcm | D211: = | E211: 38 | F211: MPa | H211: - průměrná pevnost v tlaku C30/37 | O211: 38
C212: alphads1 | D212: = | E212: 4 | H212: - cement N (ČSN EN 1992-1-1) | O212: 4
C213: alphads2 | D213: = | E213: 0.12 | H213: - cement N (ČSN EN 1992-1-1) | O213: 0.12
C215: epsiloncd,inf | D215: = | E215: =k_h*epsilon_cd_0 -> 0.000400260212 | O215: =k_h*epsilon_cd_0
L216: h0 | M216: kh
C217: h0 | D217: = | E217: =h_slab -> 220 | F217: mm | L217: 200 | M217: 0.85 | O217: =h_slab
L218: 300 | M218: 0.75 | O218: =JV_ukazvzorec(E218) -> 
C219: kh | D219: = | E219: =M219 -> 0.83 | H219: - interpolací (tabulka vpravo) -> | L219: =E217 -> 220 | M219: =(M218-M217)/(L218-L217)*(L219-L217)+M217 -> 0.83 | O219: =JV_ukazvzorec(E219) -> =M219
C221: betads | D221: = | E221: =(t_inf-t_s)/((t_inf-t_s)+0.04*SQRT(h_0^3)) -> 0.9928960233 | O221: =(t_inf-t_s)/((t_inf-t_s)+0.04*SQRT(h_0^3))
C223: tinf | D223: = | E223: =t_inf -> 18250 | F223: d | H223: - stáří betonu v uvažovaném okamžiku (50let = 50*365=18250 dnů) | O223: =t_inf
C224: ts | D224: = | E224: =t_s -> 7 | F224: d | H224: - doba ošetřování | O224: =t_s
C226: epsiloncd,t | D226: = | E226: =beta_ds*epsilon_cd_inf -> 0.0003974167728 | O226: =beta_ds*epsilon_cd_inf
C228: poměrné autogenní smršťování
C229: betaas(t) | D229: = | E229: =1-EXP(-0.2*t_inf^0.5) -> 1 | O229: =1-EXP(-0.2*t_inf^0.5)
C231: epsilonca(inf) | D231: = | E231: =2.5*(fck-10)*10^-6 -> 5e-05 | O231: =2.5*(fck-10)*10^-6
C233: epsilonca(t) | D233: = | E233: =beta_as_t*epsilon_ca_inf -> 5e-05 | O233: =beta_as_t*epsilon_ca_inf
C235: CELKOVÉ POMĚRNÉ SMRŠŤOVÁNÍ
C237: epsiloncs | D237: = | E237: =epsilon_cd_t+epsilon_ca_t -> 0.0004474167728 | O237: =epsilon_cd_t+epsilon_ca_t
C239: PRŮŘEZ BEZ TRHLIN - CHARAKTERISTIKY
C240: efektivní modul pružnosti
C241: Ec,ef,sh | D241: = | E241: =Ecm/(1+fi_c_sh) -> 8.311688312 | F241: GPa | O241: =Ecm/(1+fi_c_sh)
C242: alpha_e,ef,sh | D242: = | E242: =Es/Ec_ef_sh -> 24.0625 | O242: =Es/Ec_ef_sh
C243: plocha ideálního průřezu
C244: AI,ef,sh,x | D244: = | E244: =h_slab*b_slab+alpha_e_ef_sh*(As_1_x+As_2_x) -> 243182.3358 | F244: mm2 | O244: =h_slab*b_slab+alpha_e_ef_sh*(As_1_x+As_2_x)
C245: AI,ef,sh,y | D245: = | E245: =h_slab*b_slab+alpha_e_ef_sh*(As_1_y+As_2_y) -> 238562.6674 | F245: mm2 | O245: =h_slab*b_slab+alpha_e_ef_sh*(As_1_y+As_2_y)
C246: vzdálenost těžiště ideálního průřezu od horního okraje
C247: aI,ef,sh,x | D247: = | E247: =(h_slab*b_slab*h_slab/2+alpha_e_ef*(As_1_x*d_x+As_2_x*d_2_x))/plocha_i_ef_sh_x -> 110.3043424 | F247: mm | O247: =(h_slab*b_slab*h_slab/2+alpha_e_ef*(As_1_x*d_x+As_2_x*d_2_x))/plocha_i_ef_sh_x
C248: aI,ef,sh,y | D248: = | E248: =(h_slab*b_slab*h_slab/2+alpha_e_ef*(As_1_x*d_y+As_2_y*d_2_y))/plocha_i_ef_sh_y -> 112.0690345 | F248: mm | O248: =(h_slab*b_slab*h_slab/2+alpha_e_ef*(As_1_x*d_y+As_2_y*d_2_y))/plocha_i_ef_sh_y
C249: moment setrvačnosti ideálního průřezu
C250: II,ef,sh,x | D250: = | E250: =1/12*b_slab*h_slab^3+b_slab*h_slab*(vzdalenost_i_ef_sh_x-h_slab/2)^2+alpha_e_ef_sh*(As_1_x*(d_x-vzdalenost_i_ef_sh_x)^2+As_2_x*(vzdalenost_i_ef_sh_x-d_2_x)^2) -> 1022767699 | F250: mm4 | O250: =1/12*b_slab*h_slab^3+b_slab*h_slab*(vzdalenost_i_ef_sh_x-h_slab/2)^2+alpha_e_ef_sh*(As_1_x*(d_x-vzdalenost_i_ef_sh_x)^2+As_2_x*(vzdalenost_i_ef_sh_x-d_2_x)^2)
C251: II,ef,sh,y | D251: = | E251: =1/12*b_slab*h_slab^3+b_slab*h_slab*(vzdalenost_i_ef_sh_y-h_slab/2)^2+alpha_e_ef_sh*(As_1_y*(d_y-vzdalenost_i_ef_sh_y)^2+As_2_y*(vzdalenost_i_ef_sh_y-d_2_y)^2) -> 972694731.2 | F251: mm4 | O251: =1/12*b_slab*h_slab^3+b_slab*h_slab*(vzdalenost_i_ef_sh_y-h_slab/2)^2+alpha_e_ef_sh*(As_1_y*(d_y-vzdalenost_i_ef_sh_y)^2+As_2_y*(vzdalenost_i_ef_sh_y-d_2_y)^2)
C252: statický moment průřezové plochy k těžišti výztuže
C253: SI,ef,sh,x | D253: = | E253: =(As_1_x+As_2_x)*(d_x-vzdalenost_i_ef_sh_x) -> 70999.99923 | F253: mm3 | O253: =(As_1_x+As_2_x)*(d_x-vzdalenost_i_ef_sh_x)
C254: SI,ef,sh,y | D254: = | E254: =(As_1_y+As_2_y)*(d_y-vzdalenost_i_ef_sh_y) -> 47004.31164 | F254: mm3 | O254: =(As_1_y+As_2_y)*(d_y-vzdalenost_i_ef_sh_y)
C256: PRŮŘEZ S TRHLINAMI - CHARAKTERISTIKY | O256: =JV_ukazvzorec(E256) -> 
C257: vzdálenost neutrální osy od tlačeného okraje
C258: xcr,ef,sh,x | D258: = | E258: =alpha_e_ef_sh/b_slab*(As_1_x+As_2_x)*(-1+SQRT(1+(2*b_slab/alpha_e_ef_sh)*((As_1_x*d_x+As_2_x*d_2_x)/(As_1_x+As_2_x)^2))) -> 57.86616641 | F258: mm | O258: =alpha_e_ef_sh/b_slab*(As_1_x+As_2_x)*(-1+SQRT(1+(2*b_slab/alpha_e_ef_sh)*((As_1_x*d_x+As_2_x*d_2_x)/(As_1_x+As_2_x)^2)))
C259: xcr,ef,sh,y | D259: = | E259: =alpha_e_ef_sh/b_slab*(As_1_y+As_2_y)*(-1+SQRT(1+(2*b_slab/alpha_e_ef_sh)*((As_1_y*d_y+As_2_y*d_2_y)/(As_1_y+As_2_y)^2))) -> 49.06872322 | F259: mm | O259: =alpha_e_ef_sh/b_slab*(As_1_y+As_2_y)*(-1+SQRT(1+(2*b_slab/alpha_e_ef_sh)*((As_1_y*d_y+As_2_y*d_2_y)/(As_1_y+As_2_y)^2)))
C260: moment setvračnosti potrhaného průřezu
C261: III,ef,sh,x | D261: = | E261: =1/3*b_slab*x_cr_ef_sh_x^3+alpha_e_ef_sh*(As_1_x*(d_x-x_cr_ef_sh_x)^2+As_2_x*(x_cr_ef_sh_x-d_2_x)^2) -> 311845106.9 | F261: mm4 | O261: =JV_ukazvzorec(E261) -> =1/3*b_slab*x_cr_ef_sh_x^3+alpha_e_ef_sh*(As_1_x*(d_x-x_cr_ef_sh_x)^2+As_2_x*(x_cr_ef_sh_x-d_2_x)^2)
C262: III,ef,sh,y | D262: = | E262: =1/3*b_slab*x_cr_ef_sh_y^3+alpha_e_ef_sh*(As_1_y*(d_y-x_cr_ef_sh_y)^2+As_2_y*(x_cr_ef_sh_y-d_2_y)^2) -> 201813557.5 | F262: mm4 | O262: =JV_ukazvzorec(E262) -> =1/3*b_slab*x_cr_ef_sh_y^3+alpha_e_ef_sh*(As_1_y*(d_y-x_cr_ef_sh_y)^2+As_2_y*(x_cr_ef_sh_y-d_2_y)^2)
C264: statický moment průřezové plochy k těžišti výztuže
C265: SII,ef,sh,x | D265: = | E265: =(As_1_x+As_2_x)*(d_x-x_cr_ef_sh_x) -> 121520.0783 | F265: mm3
C266: SII,ef,sh,y | D266: = | E266: =(As_1_y+As_2_y)*(d_y-x_cr_ef_sh_y) -> 95604.99011 | F266: mm3
C268: rozdělovací součinitel | O268: =JV_ukazvzorec(E268) -> 
C269: Trhliny se v průžezu pro posuzovanou (kvazistálou) kombinaci zatížení neobjeví.
C270: Během živostnosti vzniknou (charakteristická kombinace).
... 51 more rows

Sheet List2

Sheet List3
